bitfinex-derivatives/quotes_BNBF0:USTF0_20250529
["timestamp","ask_amount","ask_price","bid_price","bid_amount"]
[1748541722700,0.29407007,680.11,677.72,0.4678624]
[1748541723301,0.29407007,680.11,677.87,0.4678624]
[1748541723601,0.29407007,680.11,677.85,0.4678624]
[1748541723796,0.29407007,680.11,677.91,0.4678624]
[1748541724399,0.29407007,680.11,677.52,0.549]
[1748541724400,0.29407007,680.11,677.85,0.4678624]
[1748541724600,0.29407007,680.11,677.83,0.4678624]
[1748541725201,0.29407007,680.11,677.82,0.4678624]
[1748541725400,0.29407007,680.11,677.8,0.4678624]
[1748541725804,0.29407007,680.11,677.79,0.4678624]
[1748541726006,0.29407007,680.11,677.8,0.4678624]
[1748541726202,0.29407007,680.11,677.83,0.4678624]
[1748541726607,0.29407007,680.11,677.81,0.4678624]
[1748541727102,0.29407007,680.11,677.82,0.637]
[1748541747619,0.29407007,680.11,677.87,0.4678624]
[1748541747820,0.29407007,680.11,677.85,0.4678624]
[1748541748022,0.29407007,680.11,677.82,1.1048624]
[1748541748221,0.29407007,680.11,677.82,0.637]
[1748541754029,0.29407007,680.11,677.9,0.4678624]
[1748541754531,0.29407007,680.11,677.86,0.4678624]
[1748541754730,0.29407007,680.11,677.87,0.4678624]
[1748541754925,0.29407007,680.11,677.86,0.4678624]
[1748541755427,0.29407007,680.11,677.85,0.4678624]
[1748541755630,0.29407007,680.11,677.83,0.4678624]
[1748541756125,0.29407007,680.11,677.84,0.659]
[1748541756328,0.29407007,680.11,677.84,1.1268624]
[1748541756726,0.29407007,680.11,677.84,0.659]
[1748541757828,0.29407007,680.11,677.85,0.4678624]
[1748541758030,0.29407007,680.11,677.86,0.4678624]
[1748541758226,0.29407007,680.11,677.84,0.659]
[1748541773140,0.29407007,680.11,677.86,0.4678624]
[1748541773340,0.29407007,680.11,677.95,0.4678624]
[1748541773645,0.29407007,680.11,677.84,0.659]
[1748541795262,0.29407007,680.11,677.51,0.29519859]
[1748541797363,0.29407007,680.11,677.52,0.555]
[1748541797564,0.29407007,680.11,677.53,0.29518988]
[1748541799966,0.29407007,680.11,677.6,0.4677995]
[1748541800265,0.29407007,680.11,677.53,0.29518988]
[1748541800266,0.29407007,680.11,677.7,0.4677995]
[1748541800667,0.29407007,680.11,677.71,0.4677995]
[1748541801461,0.29407007,680.11,677.76,0.4677995]
[1748541801666,0.29407007,680.11,677.77,0.4677995]
[1748541802468,0.29407007,680.11,677.76,0.4677995]
[1748541802666,0.29407007,680.11,677.74,0.4677995]
[1748541803264,0.29407007,680.11,677.72,0.4677995]
[1748541804168,0.29407007,680.11,677.73,0.4677995]
[1748541806370,0.29407007,680.11,677.72,0.4677995]
[1748541806567,0.29407007,680.11,677.73,0.4677995]
[1748541807570,0.29407007,680.11,677.74,0.4677995]
[1748541808771,0.29407007,680.11,677.72,0.4677995]
[1748541809267,0.29407007,680.11,677.85,0.4677995]
[1748541809771,0.29407007,680.11,677.86,0.4677995]
[1748541810768,0.29407007,680.11,677.87,0.4677995]
[1748541811172,0.29407007,680.11,677.86,0.4677995]
[1748541811369,0.29407007,680.11,677.88,0.4677995]
[1748541811570,0.29407007,680.11,677.91,0.4677995]
[1748541812169,0.29407007,680.11,677.9,0.4677995]
[1748541812669,0.29407007,680.11,677.96,0.4677995]
[1748541813173,0.29407007,680.11,677.97,0.4677995]
[1748541813567,0.29407007,680.11,677.94,0.4677995]
[1748541813770,0.29407007,680.11,677.93,0.4677995]
[1748541813969,0.29407007,680.11,677.91,0.4677995]
[1748541814377,0.29407007,680.11,677.53,0.29518988]
[1748541814378,0.29407007,680.11,677.99,0.4677995]
[1748541814578,0.29407007,680.11,678.01,0.4677995]
[1748541814773,0.29407007,680.11,677.99,0.4677995]
[1748541815474,0.29407007,680.11,678.0,0.4677995]
[1748541816474,0.29407007,680.11,677.98,0.4677995]
[1748541817072,0.29407007,680.11,678.01,0.4677995]
[1748541817870,0.29407007,680.11,678.03,0.4677995]
[1748541818077,0.29407007,680.11,678.04,0.4677995]
[1748541818277,0.29407007,680.11,678.03,0.4677995]
[1748541818482,0.29407007,680.11,678.02,0.4677995]
[1748541819178,0.29407007,680.11,678.01,0.4677995]
[1748541819379,0.29407007,680.11,678.02,0.4677995]
[1748541819578,0.29407007,680.11,678.04,0.4677995]
[1748541819978,0.29407007,680.11,678.03,0.4677995]
[1748541820975,0.29407007,680.11,677.99,0.543]
[1748541838699,0.29407007,680.11,678.03,0.4677995]
[1748541839101,0.29407007,680.11,678.02,0.4677995]
[1748541839698,0.29407007,680.11,677.99,0.543]
[1748541839699,0.29407007,680.11,678.03,0.4677995]
[1748541840798,0.29407007,680.11,678.04,0.4677995]
[1748541841398,0.29407007,680.11,678.05,0.4677995]
[1748541841603,0.29407007,680.11,677.99,0.543]
[1748541841604,0.29407007,680.11,678.03,0.4677995]
[1748541841805,0.29407007,680.11,678.04,0.4677995]
[1748541842805,0.29407007,680.11,678.05,0.4677995]
[1748541843307,0.29407007,680.11,678.06,0.4677995]
[1748541843505,0.29407007,680.11,678.05,0.4677995]
[1748541843806,0.29407007,680.11,678.06,0.4677995]
[1748541844303,0.29407007,680.11,677.99,0.543]
[1748541857213,0.29407007,680.11,677.99,1.0107995]
[1748541857616,0.29407007,680.11,678.0,0.4677995]
[1748541859213,0.29407007,680.11,678.06,0.4677995]
[1748541859413,0.29407007,680.11,677.57,0.4677995]
[1748541859414,0.29407007,680.11,677.95,0.4677995]
[1748541859615,0.29407007,680.11,677.96,0.4677995]
[1748541860017,0.29407007,680.11,677.97,0.507]
[1748541896854,0.29407007,680.11,677.92,0.4677995]
[1748541897053,0.29407007,680.11,677.89,0.4677995]
[1748541897255,0.29407007,680.11,677.88,0.4677995]
[1748541898152,0.29407007,680.11,677.87,0.4677995]
[1748541898453,0.29407007,680.11,677.91,0.4677995]
[1748541899158,0.29407007,680.11,677.92,0.466]
[1748541900459,0.29407007,680.11,677.95,0.4677995]
[1748541900660,0.29407007,680.11,678.02,0.4677995]
[1748541900854,0.29407007,680.11,678.01,0.4677995]
[1748541901258,0.29407007,680.11,678.04,0.4677995]
[1748541901460,0.29407007,680.11,678.03,0.4677995]
[1748541901660,0.29407007,680.11,678.04,0.4677995]
[1748541903272,0.29407007,680.11,678.03,0.4677995]
[1748541903559,0.29407007,680.11,678.06,0.4677995]
[1748541903762,0.29407007,680.11,678.09,0.4677995]
[1748541903957,0.29407007,680.11,677.92,0.466]
[1748541903958,0.29407007,680.11,678.21,0.4677995]
[1748541904464,0.29407007,680.11,678.28,0.4677995]
[1748541904664,0.29407007,680.11,678.41,0.4677995]
[1748541905260,0.29407007,680.11,678.03,0.4677995]
[1748541905261,0.29407007,680.11,678.33,0.4677995]
[1748541905459,0.29407007,680.11,678.35,0.4677995]
[1748541905760,0.29407007,680.11,678.37,0.4677995]
[1748541905961,0.29407007,680.11,678.38,0.4677995]
[1748541906164,0.29407007,680.11,678.31,0.4677995]
[1748541906660,0.29407007,680.11,678.3,0.4677995]
[1748541906861,0.29407007,680.11,678.29,0.4677995]
[1748541907064,0.29407007,680.11,678.26,0.4677995]
[1748541907965,0.29407007,680.11,678.25,0.4677995]
[1748541908168,0.29407007,680.11,677.92,0.466]
[1748541908169,0.29407007,680.11,678.21,0.4677995]
[1748541908365,0.29407007,680.11,678.23,0.4677995]
[1748541908563,0.29407007,680.11,678.22,0.4677995]
[1748541908763,0.29407007,680.11,678.23,0.4677995]
[1748541908965,0.29407007,680.11,677.92,0.466]
[1748541908966,0.29407007,680.11,678.22,0.4677995]
[1748541909165,0.29407007,680.11,678.19,0.4677995]
[1748541909670,0.29407007,680.11,678.18,0.4677995]
[1748541909971,0.29407007,680.11,678.16,0.4677995]
[1748541910171,0.29407007,680.11,678.15,0.4677995]
[1748541910371,0.29407007,680.11,678.16,0.4677995]
[1748541910773,0.29407007,680.11,678.11,0.4677995]
[1748541911273,0.29407007,680.11,678.1,0.4677995]
[1748541912174,0.29407007,680.11,678.09,0.4677995]
[1748541912972,0.29407007,680.11,678.1,0.4677995]
[1748541913275,0.29407007,680.11,678.09,0.4677995]
[1748541914073,0.29407007,680.11,678.1,0.528]
[1748541914869,0.29407007,680.11,678.1,0.9957995]
[1748541915876,0.29407007,680.11,678.1,0.528]
[1748541918177,0.29407007,680.11,678.1,0.9957995]
[1748541918781,0.29407007,680.11,678.13,0.4677995]
[1748541919379,0.29407007,680.11,678.1,0.528]
[1748541925379,0.29407007,680.11,678.11,0.4677995]
[1748541925585,0.29407007,680.11,678.1,0.528]
[1748541925784,0.29407007,680.11,678.11,0.4677995]
[1748541925981,0.29407007,680.11,678.1,0.528]
[1748541927982,0.29407007,680.11,678.12,0.4677995]
[1748541928186,0.29407007,680.11,678.13,0.4677995]
[1748541928387,0.29407007,680.11,678.1,0.9957995]
[1748541929187,0.29407007,680.11,678.22,0.4677995]
[1748541930187,0.29407007,680.11,678.1,0.528]
[1748541930188,0.29407007,680.11,678.23,0.4677995]
[1748541930882,0.29407007,680.11,678.28,0.4677995]
[1748541931083,0.29407007,680.11,678.29,0.4677995]
[1748541931684,0.29407007,680.11,678.3,0.4677995]
[1748541932285,0.29407007,680.11,678.32,0.4677995]
[1748541933290,0.29407007,680.11,678.33,0.4677995]
[1748541933690,0.29407007,680.11,678.3,0.4677995]
[1748541933890,0.29407007,680.11,678.29,0.4677995]
[1748541934084,0.29407007,680.11,678.1,0.528]
[1748541934085,0.29407007,680.11,678.31,0.4677995]
[1748541935091,0.29407007,680.11,678.3,0.4677995]
[1748541935989,0.29407007,680.11,678.35,0.4677995]
[1748541936295,0.29407007,680.11,678.37,0.4677995]
[1748541936593,0.29407007,680.11,678.38,0.4677995]
[1748541936894,0.29407007,680.11,678.41,0.4677995]
[1748541937297,0.29407007,680.11,678.44,0.4677995]
[1748541937490,0.29407007,680.11,678.45,0.4677995]
[1748541938291,0.29407007,680.11,678.47,0.4677995]
[1748541941696,0.29407007,680.11,678.48,0.4677995]
[1748541942701,0.29407007,680.11,678.45,0.4677995]
[1748541943695,0.29407007,680.11,678.48,0.4677995]
[1748541943900,0.29407007,680.11,677.97,0.4677995]
[1748541943901,0.29407007,680.11,678.49,0.4677995]
[1748541944202,0.29407007,680.11,678.48,0.4677995]
[1748541945096,0.29407007,680.11,677.67,0.56135941]
[1748541945097,0.29407007,680.11,678.49,0.9427995]
[1748541945303,0.29407007,680.11,678.5,0.4677995]
[1748541945701,0.29407007,680.11,678.49,0.475]
[1748541948098,0.29407007,680.11,678.5,0.4677995]
[1748541949099,0.29407007,680.11,678.51,0.4677995]
[1748541949298,0.29407007,680.11,678.49,0.475]
[1748541975223,0.29407007,680.11,677.09,0.56135941]
[1748541975224,0.29407007,680.11,678.12,0.4677995]
[1748541976622,0.29407007,680.11,678.13,0.4677995]
[1748541977024,0.29407007,680.11,678.12,0.4677995]
[1748541977321,0.29407007,680.11,678.14,0.63]
[1748541984134,0.29407007,680.11,678.17,0.4677995]
[1748541985128,0.29407007,680.11,678.18,0.4677995]
[1748541986932,0.29407007,680.11,678.15,0.4677995]
[1748541987134,0.29407007,680.11,678.2,0.4677995]
[1748541988335,0.29407007,680.11,678.21,0.4677995]
[1748541988531,0.29407007,680.11,678.29,0.4677995]
[1748541989434,0.29407007,680.11,678.36,0.4677995]
[1748541989734,0.29407007,680.11,678.14,0.63]
[1748541989735,0.29407007,680.11,678.37,0.4677995]
[1748541991235,0.29407007,680.11,678.36,0.4677995]
[1748541992431,0.29407007,680.11,678.37,0.4677995]
[1748541994839,0.29407007,680.11,678.32,0.4677995]
[1748541995040,0.29407007,680.11,678.29,0.4677995]
[1748541995240,0.29407007,680.11,678.28,0.4677995]
[1748541995541,0.29407007,680.11,678.29,0.4677995]
[1748541996440,0.29407007,680.11,678.3,0.4677995]
[1748541996835,0.29407007,680.11,678.33,0.4677995]
[1748541998337,0.29407007,680.11,678.34,0.4677995]
[1748541999041,0.29407007,680.11,678.35,0.4677995]
[1748542000240,0.29407007,680.11,678.38,0.4677995]
[1748542000543,0.29407007,680.11,678.34,0.4677995]
[1748542000743,0.29407007,680.11,678.36,0.4677995]
[1748542001146,0.29407007,680.11,678.35,0.4677995]
[1748542001345,0.29407007,680.11,678.36,0.4677995]
[1748542001547,0.29407007,680.11,678.24,0.4677995]
[1748542002039,0.29407007,680.11,678.14,0.63]
[1748542003545,0.29407007,680.11,678.15,0.29492]
[1748542003945,0.29407007,680.11,678.41,0.4677995]
[1748542004143,0.29407007,680.11,678.4,0.4677995]
[1748542004341,0.29407007,680.11,678.47,0.4677995]
[1748542005043,0.29407007,680.11,678.48,0.4677995]
[1748542005239,0.29407007,680.11,678.46,0.4677995]
[1748542005442,0.29407007,680.11,678.41,0.4677995]
[1748542006246,0.29407007,680.11,678.39,0.4677995]
[1748542006642,0.29407007,680.11,678.15,0.29492]
[1748542006643,0.29407007,680.11,678.4,0.699]
[1748542024164,0.29407007,680.11,678.42,0.4677995]
[1748542025365,0.29407007,680.11,678.15,0.29492]
[1748542025366,0.29407007,680.11,678.43,0.4677995]
[1748542025761,0.29407007,680.11,678.44,0.4677995]
[1748542025962,0.29407007,680.11,678.45,0.4677995]
[1748542026359,0.29407007,680.11,678.46,0.4677995]
[1748542027262,0.29407007,680.11,678.47,0.515]
[1748542028167,0.29407007,680.11,678.48,0.4677995]
[1748542028569,0.29407007,680.11,678.49,0.4677995]
[1748542029273,0.29407007,680.11,678.47,0.515]
[1748542039175,0.29407007,680.11,678.53,0.4677995]
[1748542039478,0.29407007,680.11,678.47,0.515]
[1748542046189,0.29407007,680.11,678.57,0.4677995]
[1748542046484,0.29407007,680.11,678.56,0.4677995]
[1748542046984,0.29407007,680.11,678.53,0.4677995]
[1748542047491,0.29407007,680.11,678.49,0.4677995]
[1748542048290,0.29407007,680.11,678.48,0.4677995]
[1748542048684,0.29407007,680.11,678.47,0.9827995]
[1748542050389,0.29407007,680.11,678.47,0.515]
[1748542056687,0.29407007,680.11,678.47,0.9827995]
[1748542057293,0.29407007,680.11,678.47,0.515]
[1748542057491,0.29407007,680.11,678.47,0.9827995]
[1748542058291,0.29407007,680.11,678.46,0.4677995]
[1748542059191,0.29407007,680.11,678.45,0.4677995]
[1748542060196,0.29407007,680.11,678.5,0.4677995]
[1748542060595,0.29407007,680.11,678.49,0.4677995]
[1748542060895,0.29407007,680.11,678.5,0.542]
[1748542061293,0.29407007,680.11,678.51,0.4677995]
[1748542063400,0.29407007,680.11,678.5,1.0097995]
[1748542063599,0.29407007,680.11,678.52,0.4677995]
[1748542063996,0.29407007,680.11,678.54,0.4677995]
[1748542065602,0.29407007,680.11,678.5,0.542]
[1748542065603,0.29407007,680.11,678.55,0.4677995]
[1748542066303,0.29407007,680.11,678.56,0.4677995]
[1748542066798,0.29407007,680.11,678.72,0.4677995]
[1748542068300,0.29407007,680.11,678.73,0.4677995]
[1748542068505,0.29407007,680.11,678.72,0.4677995]
[1748542069408,0.29407007,680.11,678.73,0.4677995]
[1748542070203,0.29407007,680.11,678.74,0.4677995]
[1748542071203,0.29407007,680.11,678.73,0.4677995]
[1748542071401,0.29407007,680.11,678.74,0.4677995]
[1748542071605,0.29407007,680.11,678.73,0.4677995]
[1748542072408,0.29407007,680.11,678.5,0.542]
[1748542072409,0.29407007,680.11,678.74,0.4677995]
[1748542072909,0.29407007,680.11,678.76,0.4677995]
[1748542073505,0.29407007,680.11,678.78,0.4677995]
[1748542074306,0.29407007,680.11,678.63,0.4677995]
[1748542074905,0.29407007,680.11,678.62,0.4677995]
[1748542075311,0.29407007,680.11,678.64,0.4677995]
[1748542076411,0.29407007,680.11,678.65,0.4677995]
[1748542077312,0.29407007,680.11,678.5,0.542]
[1748542077313,0.29407007,680.11,678.66,0.4677995]
[1748542077909,0.29407007,680.11,678.67,0.4677995]
[1748542078215,0.29407007,680.11,678.7,0.4677995]
[1748542078513,0.29407007,680.11,678.66,0.4677995]
[1748542079308,0.29407007,680.11,678.67,0.4677995]
[1748542079510,0.29407007,680.11,678.68,0.4677995]
[1748542079908,0.29407007,680.11,678.69,0.4677995]
[1748542080112,0.29407007,680.11,678.7,0.4677995]
[1748542080413,0.29407007,680.11,678.71,0.4677995]
[1748542080612,0.29407007,680.11,678.72,0.4677995]
[1748542081910,0.29407007,680.11,678.71,0.4677995]
[1748542082114,0.29407007,680.11,678.72,0.4677995]
[1748542082415,0.29407007,680.11,678.72,1.1857995]
[1748542082811,0.29407007,680.11,678.84,0.4677995]
[1748542083009,0.29407007,680.11,678.83,0.4677995]
[1748542083415,0.29407007,680.11,678.84,0.4677995]
[1748542084820,0.29407007,680.11,678.86,0.4677995]
[1748542085923,0.29407007,680.11,678.85,0.4677995]
[1748542086423,0.29407007,680.11,678.86,0.4677995]
[1748542087425,0.29407007,680.11,678.87,0.4677995]
[1748542087628,0.29407007,680.11,678.89,0.4677995]
[1748542087926,0.29407007,680.11,678.9,0.4677995]
[1748542088426,0.29407007,680.11,678.86,0.4677995]
[1748542088620,0.29407007,680.11,678.83,0.4677995]
[1748542088824,0.29407007,680.11,678.72,0.718]
[1748542088825,0.29407007,680.11,678.86,0.4677995]
[1748542089425,0.29407007,680.11,678.72,0.718]
[1748542089426,0.29407007,680.11,678.87,0.4677995]
[1748542089829,0.29407007,680.11,678.82,0.4677995]
[1748542090026,0.29407007,680.11,678.72,0.718]
[1748542090027,0.29407007,680.11,678.81,0.4677995]
[1748542090728,0.29407007,680.11,678.78,0.4677995]
[1748542091127,0.29407007,680.11,678.77,0.4677995]
[1748542091630,0.29407007,680.11,678.78,0.4677995]
[1748542091825,0.29407007,680.11,678.77,0.4677995]
[1748542092428,0.29407007,680.11,678.75,0.4677995]
[1748542092630,0.29407007,680.11,678.85,0.4677995]
[1748542092832,0.29407007,680.11,678.84,0.4677995]
[1748542093431,0.29407007,680.11,678.86,0.4677995]
[1748542094336,0.29407007,680.11,678.85,0.4677995]
[1748542095529,0.29407007,680.11,678.81,0.4677995]
[1748542095733,0.29407007,680.11,678.82,0.4677995]
[1748542096335,0.29407007,680.11,678.81,0.4677995]
[1748542096937,0.29407007,680.11,678.82,0.4677995]
[1748542097131,0.29407007,680.11,678.79,0.4677995]
[1748542098634,0.29407007,680.11,678.76,0.4677995]
[1748542098834,0.29407007,680.11,678.75,0.4677995]
[1748542099436,0.29407007,680.11,678.72,0.718]
[1748542112361,0.29407007,680.11,678.35,0.4677995]
[1748542112553,0.29407007,680.11,678.15,0.29492]
[1748542112554,0.29407007,680.11,678.37,0.76262385]
[1748542112753,0.29407007,680.11,678.38,0.29482001]
[1748542113251,0.29407007,680.11,678.38,0.76261951]
[1748542113656,0.29407007,680.11,678.71,0.4677995]
[1748542114055,0.29407007,680.11,678.7,0.4677995]
[1748542114555,0.29407007,680.11,678.71,0.4677995]
[1748542115356,0.29407007,680.11,678.64,0.4677995]
[1748542115560,0.29407007,680.11,678.72,0.688]
[1748542128671,0.29407007,680.11,678.49,0.4677995]
[1748542128875,0.29407007,680.11,678.5,0.29476787]
[1748542129967,0.29407007,680.11,678.53,0.4677995]
[1748542130167,0.29407007,680.11,678.54,0.29475049]
[1748542130970,0.29407007,680.11,678.67,0.4677995]
[1748542131775,0.29407007,680.11,678.66,0.4677995]
[1748542132568,0.29407007,680.11,678.67,0.4677995]
[1748542133069,0.29407007,680.11,678.55,0.692]
[1748542133070,0.29407007,680.11,678.66,0.4677995]
[1748542134575,0.29407007,680.11,678.67,0.4677995]
[1748542134776,0.29407007,680.11,678.68,0.4677995]
[1748542135276,0.29407007,680.11,678.69,0.4677995]
[1748542136677,0.29407007,680.11,678.7,0.4677995]
[1748542137474,0.29407007,680.11,678.77,0.4677995]
[1748542138173,0.29407007,680.11,678.76,0.4677995]
[1748542138576,0.29407007,680.11,678.83,0.4677995]
[1748542139376,0.29407007,680.11,678.84,0.4677995]
[1748542139577,0.29407007,680.11,678.85,0.4677995]
[1748542139774,0.29407007,680.11,678.86,0.4677995]
[1748542140679,0.29407007,680.11,678.55,0.692]
[1748542140680,0.29407007,680.11,678.87,0.4677995]
[1748542141683,0.29407007,680.11,678.55,0.692]
[1748542141684,0.29407007,680.11,678.9,0.4677995]
[1748542141882,0.29407007,680.11,679.0,0.4677995]
[1748542142082,0.29407007,680.11,679.01,0.4677995]
[1748542142286,0.29407007,680.11,679.0,0.4677995]
[1748542142679,0.29407007,680.11,679.01,0.4677995]
[1748542142884,0.29407007,680.11,679.05,0.4677995]
[1748542143383,0.29407007,680.11,679.06,0.4677995]
[1748542143579,0.29407007,680.11,678.6,0.4677995]
[1748542143580,0.29407007,680.11,679.04,0.4677995]
[1748542144383,0.29407007,680.11,679.11,0.4677995]
[1748542145279,0.29407007,680.11,679.07,0.4677995]
[1748542146578,0.29407007,680.11,679.06,0.4677995]
[1748542147379,0.29407007,680.11,678.79,0.4677995]
[1748542147987,0.29407007,680.11,678.78,0.4677995]
[1748542148985,0.29407007,680.11,678.77,0.4677995]
[1748542152185,0.29407007,680.11,678.78,0.4677995]
[1748542152586,0.29407007,680.11,678.77,0.4677995]
[1748542152787,0.29407007,680.11,678.78,0.4677995]
[1748542153589,0.29407007,680.11,678.77,0.4677995]
[1748542155087,0.29407007,680.11,678.78,0.4677995]
[1748542156183,0.29407007,680.11,678.77,0.4677995]
[1748542156687,0.29407007,680.11,678.78,0.4677995]
[1748542157287,0.29407007,680.11,679.05,0.4677995]
[1748542157888,0.29407007,680.11,679.11,0.4677995]
[1748542158289,0.29407007,680.11,679.09,0.4677995]
[1748542158684,0.29407007,680.11,679.07,0.4677995]
[1748542158887,0.29407007,680.11,679.1,0.4677995]
[1748542159387,0.29407007,680.11,678.96,0.4677995]
[1748542159784,0.29407007,680.11,678.88,0.4677995]
[1748542159990,0.29407007,680.11,678.87,0.4677995]
[1748542161391,0.29407007,680.11,678.77,0.4677995]
[1748542161586,0.29407007,680.11,678.54,0.29475049]
[1748542161587,0.29407007,680.11,678.72,0.4677995]
[1748542162890,0.29407007,680.11,678.58,0.4677995]
[1748542163090,0.29407007,680.11,678.59,0.29472877]
[1748542171491,0.29407007,680.11,678.77,0.4677995]
[1748542171893,0.29407007,680.11,678.76,0.4677995]
[1748542172193,0.29407007,680.11,678.77,0.4677995]
[1748542173300,0.29407007,680.11,678.59,0.29472877]
[1748542173301,0.29407007,680.11,678.76,0.4677995]
[1748542175201,0.29407007,680.11,678.74,0.4677995]
[1748542177606,0.29407007,680.11,678.59,0.29472877]
[1748542189621,0.29407007,680.11,678.76,0.4677995]
[1748542191220,0.29407007,680.11,678.66,0.4677995]
[1748542191417,0.29407007,680.11,678.71,0.4677995]
[1748542191617,0.29407007,680.11,678.82,0.4677995]
[1748542192122,0.29407007,680.11,678.81,0.4677995]
[1748542192323,0.29407007,680.11,678.8,0.4677995]
[1748542192719,0.29407007,680.11,678.81,0.4677995]
[1748542194130,0.29407007,680.11,678.88,0.4677995]
[1748542194631,0.29407007,680.11,678.89,0.4677995]
[1748542195026,0.29407007,680.11,678.91,0.4677995]
[1748542195727,0.29407007,680.11,678.92,0.4677995]
[1748542196033,0.29407007,680.11,678.68,0.4677995]
[1748542196526,0.29407007,680.11,678.73,0.4677995]
[1748542197531,0.29407007,680.11,678.74,0.4677995]
[1748542198132,0.29407007,680.11,678.75,0.4677995]
[1748542198328,0.29407007,680.11,678.76,0.4677995]
[1748542200833,0.29407007,680.11,678.77,0.4677995]
[1748542201033,0.29407007,680.11,678.76,0.4677995]
[1748542201230,0.29407007,680.11,678.77,0.4677995]
[1748542202340,0.29407007,680.11,678.76,0.4677995]
[1748542204541,0.29407007,680.11,678.93,0.4677995]
[1748542205841,0.29407007,680.11,678.92,0.4677995]
[1748542206438,0.29407007,680.11,678.93,0.4677995]
[1748542207443,0.29407007,680.11,678.94,0.515]
[1748542208343,0.29407007,680.11,678.94,0.9827995]
[1748542210344,0.29407007,680.11,678.95,0.4677995]
[1748542210537,0.29407007,680.11,678.94,0.9827995]
[1748542210741,0.29407007,680.11,679.01,0.4677995]
[1748542211840,0.29407007,680.11,679.02,0.4677995]
[1748542212641,0.29407007,680.11,678.94,0.515]
[1748542221146,0.29407007,680.11,678.97,0.4677995]
[1748542224255,0.29407007,680.11,678.94,0.515]
[1748542225355,0.29407007,680.11,678.95,0.4677995]
[1748542225551,0.29407007,680.11,678.96,0.4677995]
[1748542226455,0.29407007,680.11,678.94,0.515]
[1748542229655,0.29407007,680.11,678.94,0.9827995]
[1748542229856,0.29407007,680.11,678.94,0.515]
[1748542231461,0.29407007,680.11,678.98,0.4677995]
[1748542231658,0.29407007,680.11,678.99,0.4677995]
[1748542231858,0.29407007,680.11,678.98,0.4677995]
[1748542232456,0.29407007,680.11,678.96,0.4677995]
[1748542232861,0.29407007,680.11,678.97,0.4677995]
[1748542233059,0.29407007,680.11,679.07,0.4677995]
[1748542233563,0.29407007,680.11,679.05,0.4677995]
[1748542233756,0.29407007,680.11,679.07,0.4677995]
[1748542233959,0.29407007,680.11,678.94,0.515]
[1748542233960,0.29407007,680.11,679.09,0.4677995]
[1748542234164,0.29407007,680.11,678.94,0.515]
[1748542239466,0.29407007,680.11,678.79,0.4677995]
[1748542239762,0.29407007,680.11,678.8,0.29463759]
[1748542240362,0.29407007,680.11,678.82,0.4677995]
[1748542240567,0.29407007,680.11,678.83,0.29462457]
[1748542245268,0.29407007,680.11,678.86,0.4677995]
[1748542246171,0.29407007,680.11,678.9,0.4677995]
[1748542247070,0.29407007,680.11,678.87,0.4677995]
[1748542248273,0.29407007,680.11,678.84,0.4677995]
[1748542249372,0.29407007,680.11,678.85,0.4677995]
[1748542250071,0.29407007,680.11,678.83,0.76242407]
[1748542250872,0.29407007,680.11,678.84,0.4677995]
[1748542251474,0.29407007,680.11,678.98,0.4677995]
[1748542252471,0.29407007,680.11,678.83,0.29462457]
[1748542252472,0.29407007,680.11,678.99,0.4677995]
[1748542252971,0.29407007,680.11,678.98,0.4677995]
[1748542253173,0.29407007,680.11,678.99,0.4677995]
[1748542253375,0.29407007,680.11,678.98,0.4677995]
[1748542253679,0.29407007,680.11,678.99,0.4677995]
[1748542254473,0.29407007,680.11,678.98,0.4677995]
[1748542255876,0.29407007,680.11,678.99,0.4677995]
[1748542256079,0.29407007,680.11,678.97,0.4677995]
[1748542256777,0.29407007,680.11,678.98,0.4677995]
[1748542256979,0.29407007,680.11,679.01,0.4677995]
[1748542257182,0.29407007,680.11,679.02,0.4677995]
[1748542257678,0.29407007,680.11,679.04,0.4677995]
[1748542258182,0.29407007,680.11,679.06,0.4677995]
[1748542258378,0.29407007,680.11,679.04,0.4677995]
[1748542258582,0.29407007,680.11,678.83,0.29462457]
[1748542258583,0.29407007,680.11,679.05,0.4677995]
[1748542259682,0.29407007,680.11,679.06,0.4677995]
[1748542260786,0.29407007,680.11,678.83,0.29462457]
[1748542260787,0.29407007,680.11,679.02,0.4677995]
[1748542261682,0.29407007,680.11,679.01,0.4677995]
[1748542262087,0.29407007,680.11,678.98,0.4677995]
[1748542262483,0.29407007,680.11,678.99,0.4677995]
[1748542263383,0.29407007,680.11,679.01,0.4677995]
[1748542263788,0.29407007,680.11,679.02,0.4677995]
[1748542264284,0.29407007,680.11,679.03,0.4677995]
[1748542265184,0.29407007,680.11,679.0,0.4677995]
[1748542265384,0.29407007,680.11,679.04,0.4677995]
[1748542265584,0.29407007,680.11,679.07,0.4677995]
[1748542265784,0.29407007,680.11,679.11,0.4677995]
[1748542265990,0.29407007,680.11,679.09,0.4677995]
[1748542266190,0.29407007,680.11,679.12,0.4677995]
[1748542266389,0.29407007,680.11,678.83,0.29462457]
[1748542266390,0.29407007,680.11,679.14,0.4677995]
[1748542266590,0.29407007,680.11,679.15,0.4677995]